Workbook

Sheet Cover Page
D1: Add company logo
N2: Version 20.1
B8: Add photo
N13: Notes:
N14: This template may require adjustments by individual operators to meet specific reporting requirements as defined in the site Permit(s)
B29: Annual Performance Report 2021
B31: Permit EPR/QP3234SX
B33: Stoke Energy from Waste Facility
B35: MES Environmental Ltd.
B39: Year: | C39: 2021
B41: Address: | C41: MES Environmental Ltd, Sideway, Campbell Road, Stoke, ST4 4DX
B43: Tel: | C43: 01782 412131
B45: Email: | C45: mes@mesenvironmental.co.uk
B47: Prepared by: | C47: J Purnell | F47: Position: | G47: Environmental Consultant
B49: Approved by: | C49: S Danieli | F49: Position: | G49: Managing Director
B51: Version: | C51: 1
B53: Issue Date: | C53: 2022-01-31

Sheet Contents
A1: =+'Cover Page'!$B$29 -> Annual Performance Report 2021 | E1: =+'Cover Page'!$B$33 -> Stoke Energy from Waste Facility
A3: Contents | K3: Notes:
B4: Subject | H4: Page | K4: Section references and Page nos. to be inserted
B5: Facility Information | H5: 4 | K5: Sections and Subjects may require adjustment by individual operators to meet specific reporting requirements as defined in the sites Permit(s)
B6: Operational Data | H6: 5
B7: Operational Summary | H7: 7
B8: Performance Form 1 | H8: 8
B9: Energy Form 1 | H9: 10
B10: Permit Compliance | H10: 11
B11: Improvements | H11: 12
B12: Public Liaison | H12: 13
B13: Residue Quality | H13: 14
B14: Emissions to Water | H14: 15
B15: Emissions to Air (periodically monitored) | H15: 16
B16: Emissions to Air (continuously monitored) | H16: 17
B17: Hydrogen Chloride emissions | H17: 19
B18: Sulphur Dioxide emissions | H18: 20
B19: Oxides of Nitrogen emissions | H19: 21
B20: Total Organic Carbon emissions | H20: 22
B21: Particulate Matter emissions | H21: 23
B22: Carbon Monoxide emissions | H22: 24
B23: Ammonia emissions | H23: 25
A26: Version Control
A27: Section | B27: Information | H27: Date
A34: Distribution
A35: Copy | B35: Name, Role | H35: No.
A44: This report is required under the Industrial Emissions Directive’s Article 55(2) requirements on reporting and public information on waste incineration plants and co-incineration plants, which require the operator to produce an annual report on the functioning and monitoring of the plant and make it available to the public.

Sheet Facility Info
A1: =+'Cover Page'!$B$29 -> Annual Performance Report 2021 | E1: =+'Cover Page'!$B$33 -> Stoke Energy from Waste Facility
A3: Plant Description and Design | K3: Notes:
A5: The installation provides a sustainable method of waste disposal and recovery for the whole of the North Staffordshire conurbation, comprising the districts of Stoke-on- Trent, Newcastle under Lyme, Staffordshire Moorlands the northern area of Stafford and limited quantities from East Staffordshire, Leicestershire and Derbyshire, which would usually be taken to landfill. With two combustion lines operating with a combined capacity of up to 24 tonnes per hour, the facility is able to process a maximum of around 210,000 tonnes of waste per year, providing an effective alternative for sending the waste to landfill. Heat produced during the incineration process is converted to electrical energy by generating steam in high-pressure boilers and expanding the steam through a steam turbine. When operating at full load, the plant will typically generate around 14.2 MW of electricity and, after satisfying its own power needs, exports approximately 12 MW of electricity to the grid. | K5: Include summary of plant design, design capacity, no. of combustion lines, electrical and heat capacity and any other general information that describes the facility, its location and purpose
A20: Summary of Operational Processes and Procedures
A22: The Plant is regulated under the terms of a Permit issued by the Environment Agency (reference QP3234SX) which contains conditions to ensure that the requirements of the Waste Incineration Directive are incorporated and shall be met. MES Environmental operates all of its sites under an Integrated Management System certified to ISO 14001:2015 (environmental management), ISO 9001:2015 (quality management), and ISO 45001:2018 (health and safety management). The company also maintains the globally recognised RoSPA Gold standard award, all of which helps to ensure that the company operates responsibly, safely, and efficiently, with regard to all of its operations. In terms of plant operation, the incineration processes have been designed against the background of a detailed assessment of the prevailing environmental conditions at the site location, and are based upon the Best Available Technology (BAT) as detailed both in the original Authorisation application and the application for the Permit issued under the Pollution Prevention and Control (England and Wales) Regulations. These include, but are not limited to, the following: • Well proven process plant developed specifically for incineration of municipal solid wastes • Efficient, comprehensive process control and monitoring systems to ensure optimum conditions for complete combustion of the wastes and to minimise emissions from the processes • Operations confined within buildings under slight negative pressure in order to contain and minimise emissions such as dust and odour • Qualified and experienced operating and maintenance personnel to implement procedures to ensure that the required high standards are maintained. Operating and Maintenance Procedures are established according to an internationally recognised system of quality assurance • Multi-stage high efficiency flue gas cleaning systems comprising deNOx Selective Non-Catalytic Reduction (SNCR) for the removal of oxides of nitrogen, activated carbon and lime semi-dry acid gas scrubbing for controlling acid gas, dioxins/furans and mercury emissions • Final stage flue gas abatement for particulate materials using fabric filtration • Residues from the combustion process and from the flue gas cleaning system disposed of by approved means, maximising recycling wherever possible • Waste water from the process is neutralised and recycled as far as is practicable to minimise the quantities released to sewers • Provision of bunds or double skinned vessels for storage of fuel and chemicals in order to prevent accidental and inappropriate discharge to the public sewers and watercourse | K22: Include summary of key processes and procedures such as (but not limited to); waste reception, control rooms, grate, bed and boiler, energy & heat generation, cooling systems, residue management, emission controls, health and safety systems, maintenance

Sheet Operational Data
A1: =+'Cover Page'!$B$29 -> Annual Performance Report 2021 | E1: =+'Cover Page'!$B$33 -> Stoke Energy from Waste Facility
A3: Operational Data | K3: Notes:
A4: Plant Size | B4: 210000 | D4: tonnes pa | E4: 0 | F4: MWth | G4: 14 | H4: MWe | K4: * - RDF to include SRF
A5: No. of combustion lines | B5: 2 | D5: No. of Turbines: | F5: 1 | K5: ** - CHP plants only
K6: 2020 updates include; heat in MWh, water in Litres, NCV in MJ/kg
A7: Waste types received | B7: Unit | C7: Q1 | D7: Q2 | E7: Q3 | F7: Q4 | G7: Year Total | H7: %
A8: Household / Local Authority | B8: tonnes | C8: 47845.47276 | D8: 37579.0588 | E8: 41620.70624 | F8: 46708.06452 | G8: =SUM(C8:F8) -> 173753.3023 | H8: =IF(G8>0,G8/$G$18,"-") -> 0.9357372248 | K8: Availabiity Definition: 'the availability of a line is to be calculated by the number of hours the line reported Continuously Monitored emission levels to the Regulator through the calendar year divided by the total number of hours in that year. The overall plant availability is calculated as the Mean of all lines in the plant. For clarity this includes periods of Other Than Normal Operating Conditions (OTNOC) and abnormal operation.' Rationale: The primary function of an Energy from Waste facility is the disposal of waste. It follows therefore that the availability of a plant is determined by the period of time a facility spends undertaking this activity.
A9: Commercial & Industrial | C9: 2201.527239 | D9: 979.9411952 | E9: 2269.293764 | F9: 6481.935484 | G9: =SUM(C9:F9) -> 11932.69768 | H9: 0.06426277524
A10: Hazardous | C10: 0 | D10: 0 | E10: 0 | F10: 0 | G10: 0 | H10: -
A11: Clinical | C11: 0 | D11: 0 | E11: 0 | F11: 0 | G11: 0 | H11: -
A12: Waste wood (biomass) | C12: 0 | D12: 0 | E12: 0 | F12: 0 | G12: 0 | H12: -
A13: Refuse Derived Fuel * - H'hold/LA | C13: 0 | D13: 0 | E13: 0 | F13: 0 | G13: =SUM(C13:F13) -> 0 | H13: -
A14: Refuse Derived Fuel * - C&I | C14: 0 | D14: 0 | E14: 0 | F14: 0 | G14: 0 | H14: -
A15: Other [Please specify] | C15: 0 | D15: 0 | E15: 0 | F15: 0 | G15: 0 | H15: -
A16: Other [Please specify] | C16: 0 | D16: 0 | E16: 0 | F16: 0
A17: Other [Please specify] | C17: 0 | D17: 0 | E17: 0 | F17: 0
A18: Total waste received | C18: =SUM(C8:C17) -> 50047 | D18: =SUM(D8:D17) -> 38559 | E18: =SUM(E8:E17) -> 43890 | F18: =SUM(F8:F17) -> 53190 | G18: =SUM(G8:G17) -> 185686 | H18: 1
A19: Rejected Waste | C19: 0 | D19: 0 | E19: 0 | F19: 0 | G19: =SUM(C19:F19) -> 0 | H19: =IF(G19>0,G19/$G$18,"-") -> -
A20: Unprocessed waste transferred out | C20: 0 | D20: 0 | E20: 892 | F20: 0 | G20: 892 | H20: =IF(G20>0,G20/$G$18,"-") -> 0.00480380858
A21: Total waste combusted | C21: =C18-SUM(C19:C20) -> 50047 | D21: =D18-SUM(D19:D20) -> 38559 | E21: 42998 | F21: 53190 | G21: =SUM(C21:F21) -> 184794 | H21: =IF(G21>0,G21/$G$18,"-") -> 0.9951961914
A23: Energy Usage / Export | B23: Unit | C23: Q1 | D23: Q2 | E23: Q3 | F23: Q4 | G23: Year Total | H23: KWh/te
A24: Power Generated | B24: MWh | C24: 0 | D24: 4214 | E24: 16752 | F24: 23609 | G24: =SUM(C24:F24) -> 44575 | H24: =IF(G24>0,G24*1000/$G$21,"-") -> 241.2145416
A25: Power Exported | C25: 0 | D25: 3551 | E25: 14098 | F25: 20134 | G25: =SUM(C25:F25) -> 37783 | H25: =IF(G25>0,G25*1000/$G$21,"-") -> 204.4601015
A26: Power Used on site | C26: 0 | D26: 663 | E26: 2654 | F26: 3475 | G26: =SUM(C26:F26) -> 6792 | H26: =IF(G26>0,G26*1000/$G$21,"-") -> 36.75444008
A27: Power Imported | C27: 3673 | D27: 2200 | E27: 812 | F27: 574 | G27: 7259 | H27: =IF(G27>0,G27*1000/$G$21,"-") -> 39.28157841
A28: Parasitic Load | B28: % | C28: =IF(C24>0,1-C25/(C24+C27),"-") -> - | D28: =IF(D24>0,1-D25/(D24+D27),"-") -> 0.4463673215 | E28: =IF(E24>0,1-E25/(E24+E27),"-") -> 0.1973354589 | F28: =IF(F24>0,1-F25/(F24+F27),"-") -> 0.1674316669 | G28: =IF(G24>0,1-G25/(G24+G27),"-") -> 0.2710768993
A29: Thermal Energy Produced ** | B29: MWh | C29: 0 | D29: 0 | E29: 0 | F29: 0 | G29: =SUM(C29:F29) -> 0 | H29: =IF(G29>0,G29*1000/$G$21,"-") -> -
A30: Thermal Energy Exported ** | C30: 0 | D30: 0 | E30: 0 | F30: 0 | G30: 0 | H30: =IF(G30>0,G30*1000/$G$21,"-") -> -
A31: R1 value | C31: n/a | G31: Design / Operational / n/a
A33: Waste Disposal & Recovery | B33: Unit | C33: Q1 | D33: Q2 | E33: Q3 | F33: Q4 | G33: Year Total | H33: % inputs
A34: APC Residues - produced | B34: tonnes | C34: 1913 | D34: 1207 | E34: 1578 | F34: 1846 | G34: =SUM(C34:F34) -> 6544 | H34: =IF(G34>0,G34/$G$21,"-") -> 0.03541240516
A35: IBA - produced | C35: 8491 | D35: 6814 | E35: 8270 | F35: 9084 | G35: 32659 | H35: 0.1767319285
A36: Metals recycling | C36: 810 | D36: 626 | E36: 881 | F36: 992 | G36: =SUM(C36:F36) -> 3309 | H36: 0.01790642553
A37: Other | C37: 0 | D37: 0 | E37: 0 | F37: 0 | G37: =SUM(C37:F37) -> 0 | H37: -
A38: Other | C38: 0 | D38: 0 | E38: 0 | F38: 0 | G38: 0 | H38: -
A39: Other | C39: 0 | D39: 0 | E39: 0 | F39: 0 | G39: 0 | H39: -
A41: Raw Material Usage | B41: Unit | C41: Q1 | D41: Q2 | E41: Q3 | F41: Q4 | G41: Year Total | H41: kg or Ltr /te
A42: Mains Water | B42: ltrs | C42: 6351 | D42: 5656 | E42: 6497 | F42: 7972 | G42: =SUM(C42:F42) -> 26476 | H42: =IF(G42>0,G42/$G$21,"-") -> 0.14327305
A43: Other Water | B43: ltrs | C43: 11385 | D43: 9406 | E43: 11850 | F43: 13834 | G43: 46475 | H43: 0.2514962607
A44: Ammonia | B44: kgs | C44: 0 | D44: 0 | E44: 0 | F44: 0 | G44: 0 | H44: -
A45: Urea | B45: kgs | C45: 65000 | D45: 47000 | E45: 59000 | F45: 75000 | G45: 246000 | H45: 1.331212052
A46: Activated Carbon | B46: kgs | C46: 4000 | D46: 3000 | E46: 3000 | F46: 4000 | G46: 14000 | H46: 0.0757600355
A47: Lime / hydrated lime | B47: kgs | C47: 658000 | D47: 449000 | E47: 512000 | F47: 687000 | G47: 2306000 | H47: 12.47876013
A48: Fuel oil | B48: ltrs | C48: 55000 | D48: 98200 | E48: 79000 | F48: 43528 | G48: 275728 | H48: 1.492083076
A49: Gas | B49: cf | C49: 0 | D49: 0 | E49: 0 | F49: 0 | G49: 0
A50: Other | C50: 0 | D50: 0 | E50: 0 | F50: 0 | G50: 0
A52: Summary | B52: Line/Unit | C52: Q1 | D52: Q2 | E52: Q3 | F52: Q4 | G52: Year Total | J52: Hrs in year
A53: Availability of waste combustion by line, hrs | B53: 1 | C53: 2079 | D53: 1322.25 | E53: 2082.5 | F53: 2182.5 | G53: =SUM(C53:F53) -> 7666.25 | H53: 0.8751 | J53: 8760
B54: 2 | C54: 2063 | D54: 1855.25 | E54: 1616.25 | F54: 2166.5 | G54: 7701 | H54: 0.8791
A58: Overall Availability, mean avg. of all lines, hrs | C58: =AVERAGE(C53:C54) -> 2071 | D58: =AVERAGE(D53:D54) -> 1588.75 | E58: 1849.375 | F58: 2174.5 | G58: =AVERAGE(G53:G57) -> 7683.625 | H58: =AVERAGE(H53:H54) -> 0.8771
A59: Hours of turbine operations, hrs | B59: 1 | C59: 0 | D59: 365.5 | E59: 1644.5 | F59: 1844 | G59: 3854 | H59: 0.44
A62: Net Calorific Value of waste | B62: MJ/kg | C62: 8.08 | D62: 7.95 | E62: 8.31 | F62: 8.18 | G62: =AVERAGE(C62:F62) -> 8.13 | H62: -
A63: Abnormal Events | B63: qty. | C63: 0 | D63: 1 | E63: 1 | F63: 2 | G63: 4 | H63: =IF(G63>0,"yes","no") -> yes
A64: Abnormal operation | B64: hours | C64: 0 | D64: 1 | E64: 0.5 | F64: 1 | G64: 2.5 | H64: =+(G64)/J53 -> 0.0002853881279
A65: Permit Breaches | B65: qty. | C65: 0 | D65: 0 | E65: 0 | F65: 3 | G65: 3 | H65: =IF(G65>0,"yes","no") -> yes

Sheet Operational Summary
A1: =+'Cover Page'!$B$29 -> Annual Performance Report 2021 | E1: =+'Cover Page'!$B$33 -> Stoke Energy from Waste Facility
A3: Summary of Plant Operations and Maintenance during the reporting year | K3: Notes:
A5: • As with 2020, 2021 has been a challenging year with direct and indirect effects of COVID-19. The main challenges were with the availability of parts, service suppliers and our own staff suffering infections or self-isolating due to infection of family members. Through the implementation of stringent control measures, the plant was able to perform well with regard to waste throughput and boilers’ availability. Despite of the pandemic, 2021 statutory inspections were regularly performed. During the outage, additional control measures were introduced in order to protect workers and contractors. • In 2021 common issues (i.e. failed valves and pipework) have been the main reason of boiler unavailability in Stoke followed by tube leaks. The overall boiler availability for the year was 88%. The turbine availability has been below expected levels due to various mechanical and electrical problems: the extended turbine blades repair following the failure identified in July 2020, generator DE bearing failure and generator alignment, various oil leaks, controller failure, generator neutral buswork overheating and damaged cables. The overall turbine availability for the year was 44%. • Extensive scheduled maintenance was undertaken at the plants annual planned shutdown period: o Boilers thorough inspections performed. Thin pipes and worn refractory renewed. o Soot blowers and air hammers inspected and maintained. o Combustion system thoroughly inspected and worn parts replaced. o Auxiliary burners inspected and serviced. o Hydraulic packs serviced. o Both boiler pressure relief valves serviced. o Common vessels and main valves inspected. o Bag house filters and scrubbers cleaned, inspected and repaired where needed. The program of bags replacement continued. o Ducting and expansion joints inspections and repairs made. o Fly ash and bottom ash conveyors inspected and serviced. o Lime, urea and activated carbon systems cleaned and inspected. o Main fans and pumps inspected and serviced. The main electrical motors have been tested. o Main instrumentation calibrated. o Main electrical systems inspected and tested. Specific additional works completed during the annual shutdown: o Steam turbine and generator reinstallation and recommissioning. o Boiler 2 fitted with additional urea injection points. o Replaced “transition piece” and ash discharger boiler 1 with additional guillotine. Now, both boilers are fitted with new ash dischargers. o Renewed vapor extraction ducting of both ash dischargers. o Replaced all super heater panels of both boilers. o Upgrade air intake filters of both FD fans. o Overhauled turbine by-pass control valve. o Replaced main stop valves of both boilers. o DCS historian upgraded. Significant works completed outside the annual shutdown: o New heat exchanger CR03 fitted. o External repairs and coating to the concrete of the wind shield of the stack. o 11/33 kV transformer inspection. o Testing of the protection relays. o 11 kV and 33 kV switchgears inspection and maintenance. o Refurbishment of the fly ash bucket elevator. o Extensive re-painting works. • About health & safety: o The fume extraction system for use by welders during boiler internal repairs has been improved and consolidated. o The program of fitting spring-loaded gates nstead of chains on vertical ladders continues. o The installation of additional power supplies to reduce the amount of trailing leads during shutdowns continues. o Improved guarding of the ash belt conveyors. • Site security has been improved by mean of new CCTV cameras. | K5: Include summary of key operational and/or maintenance activity undertaken in the year, such as any major component upgrades and/or replacements
A29: Summary of Residue Handling for the reporting year
A31: There are two main sources of residue that arise from the operation of the plant; Incinerator Bottom ash (IBA) (which also includes ferrous metals discharged within the ash), and residues from the flue gas treatment system - known as Air Pollution Control residue (APCr). Residues from the flue gas treatment process (APCr) are discharged into an enclosed system which feed into double-skinned heavy-duty bags prior to removal from site for controlled treatment and disposal. These residues account for around 5% of the total weight of all refuse processed by the facility. The bottom ash produced by the site represents around 10% of the original volume of the refuse processed, and around 20% of its weight. Bottom ash residues are discharged from the lower end of each grate into a water filled ash discharger, where it is quenched and then ejected onto a conveyor system. Larger items are screened out and ferrous metals are removed via magnetic separation. The resulting material is stored in the storage bunkers prior to removal from site for recycling - the storage capacity for bottom ash residues and separated ferrous metals is sufficient to ensure 4 days storage. Collections for delivery to further processing or treatment sites are made on Mondays to Fridays and are scheduled to ensure sufficient storage capacity is maintained at all times. Collections are available at weekends if operational conditions require this facility. Bottom ash is now widely used in the UK and Europe as a substitute for valuable primary aggregate materials in the construction of roads and embankments. Bottom ash from MES Environmental is currently being reprocessed, with additional ferrous and trace metals being removed, and the remaining material being further processed into usable aggregate in a zero to landfill process. | K31: Include in here a summary of residue handling regimes and destinations

Sheet Perf. Form 1
A1: =+'Cover Page'!C39 -> 2021 | B1: Annual Reporting Performance Form 1
A3: =+'Cover Page'!B31 -> Permit EPR/QP3234SX | F3: Operator: | G3: MES Environmental
A4: Facility: | B4: =+'Cover Page'!B33:I33 -> Stoke Energy from Waste Facility | F4: Form: | G4: Performance 1
A6: Reporting Period from: | D6: 2021-01-01 | F6: to: | G6: 2021-12-31
A8: =+A1 -> 2021 | B8: Annual Reporting of Waste Disposal and Recovery
A9: Waste Description | C9: Disposal Route(s) | E9: Disposal Tonnes | G9: Recovery Tonnes | I9: % / tonne of waste incinerated
A10: 1) Hazardous Wastes
A11: APC Residues | C11: D13 | E11: ='Operational Data'!G34 -> 6544 | I11: =IF((E11+G11)>0,(E11+G11)/'Operational Data'!$G$21, "-") -> 0.03541240516
A12: IBA | I12: =IF((E12+G12)>0,(E12+G12)/'Operational Data'!$G$21, "-") -> -
I13: =IF((E13+G13)>0,(E13+G13)/'Operational Data'!$G$21, "-") -> -
I14: =IF((E14+G14)>0,(E14+G14)/'Operational Data'!$G$21, "-") -> -
A15: Total Hazardous Waste | E15: =SUM(E11:F14) -> 6544 | G15: =SUM(G11:H14) -> 0 | I15: =IF((E15+G15)>0,(E15+G15)/'Operational Data'!$G$21, "-") -> 0.03541240516
A17: 2) Non-Hazardous Wastes
A18: IBA | C18: R04 | G18: ='Operational Data'!G35 -> 32659 | I18: =IF((E18+G18)>0,(E18+G18)/'Operational Data'!$G$21, "-") -> 0.1767319285
A19: Ferrous Metal | C19: R04 | G19: ='Operational Data'!G36 -> 3309 | I19: =IF((E19+G19)>0,(E19+G19)/'Operational Data'!$G$21, "-") -> 0.01790642553
A20: Process Water | E20: 3706 | I20: =IF((E20+G20)>0,(E20+G20)/'Operational Data'!$G$21, "-") -> 0.02005476368
I21: =IF((E21+G21)>0,(E21+G21)/'Operational Data'!$G$21, "-") -> -
I22: =IF((E22+G22)>0,(E22+G22)/'Operational Data'!$G$21, "-") -> -
A23: Total Non-Hazardous Waste | E23: =SUM(E18:F22) -> 3706 | G23: =SUM(G18:H22) -> 35968 | I23: =IF((E23+G23)>0,(E23+G23)/'Operational Data'!$G$21, "-") -> 0.2146931177
A24: TOTAL WASTE | E24: =+E23+E15 -> 10250 | G24: =+G23+G15 -> 35968 | I24: =IF((E24+G24)>0,(E24+G24)/'Operational Data'!$G$21, "-") -> 0.2501055229
A26: Operator’s comments :
A31: =+A1 -> 2021 | B31: Annual Reporting of Water and Other Raw Material Usage
A32: Raw Material | E32: Usage | G32: Unit | H32: Specific Useage | J32: Unit
A33: Mains Water | E33: =+'Operational Data'!G42 -> 26476 | G33: m3 | H33: =IF(E33>0,E33/'Operational Data'!$G$21,"-") -> 0.14327305 | J33: m3/te
A34: Total Water | E34: =+'Operational Data'!G43+'Operational Data'!G42 -> 72951 | G34: m3 | H34: =IF(E34>0,E34/'Operational Data'!$G$21,"-") -> 0.3947693107 | J34: m3/te
A35: Urea / Ammonia | E35: ='Operational Data'!G45 -> 246000 | G35: kg | H35: =IF(E35>0,E35/'Operational Data'!$G$21,"-") -> 1.331212052 | J35: kg/te
A36: Activated Carbon | E36: =+'Operational Data'!G46 -> 14000 | G36: kg | H36: =IF(E36>0,E36/'Operational Data'!$G$21,"-") -> 0.0757600355 | J36: kg/te
A37: Lime / hydrated lime / Sodium Bicarb. | E37: =+'Operational Data'!G47 -> 2306000 | G37: kg | H37: =IF(E37>0,E37/'Operational Data'!$G$21,"-") -> 12.47876013 | J37: kg/te
A39: Operator’s comments :
A43: =+A31 -> 2021 | B43: Annual Reporting of other performance indicators
A44: Parameter | C44: Results by Line
C45: A1 | D45: A2 | E45: A3 | F45: A4 | G45: A5 | I45: Turbine 1 | J45: Turbine 2
A46: Operating hours for the year, hours | C46: ='Operational Data'!G53 -> 7666.25 | D46: ='Operational Data'!G54 -> 7701 | I46: ='Operational Data'!G59 -> 3854
A47: Number of periods of abnormal operation, qty. | C47: 2 | D47: 2
A48: Cumulative hours of abnormal operation for this year, hours | C48: 1.5 | D48: 1
A50: Operator’s comments :
A54: Signed: | B54: J Purnell | G54: Date: | H54: 2022-01-31

Sheet Energy Form 1
A1: =+'Cover Page'!C39 -> 2021 | B1: Annual Reporting of Energy Usage/Export
A3: =+'Cover Page'!B31 -> Permit EPR/QP3234SX | F3: Operator: | G3: MES Environmental
A5: Facility: | B5: =+'Cover Page'!B33:I33 -> Stoke Energy from Waste Facility | F5: Form: | G5: Energy 1
A7: Reporting Period from: | D7: =+'Perf. Form 1'!D6:E6 -> 2021-01-01 | F7: to: | G7: =+'Perf. Form 1'!G6:H6 -> 2021-12-31
A9: Energy Source | D9: Energy Usage | F9: Unit | G9: Specific Useage (KWh/tonne incinerated
A10: Electricity Produced | D10: =+'Operational Data'!G24 -> 44575 | F10: MWh | G10: =+'Operational Data'!H24 -> 241.2145416
A11: Electricity Imported | D11: =+'Operational Data'!G27 -> 7259 | F11: MWh | G11: =+'Operational Data'!H27 -> 39.28157841
A12: Electricity Exported | D12: =+'Operational Data'!G25 -> 37783 | F12: MWh | G12: =+'Operational Data'!H25 -> 204.4601015
A13: Gas Oil | D13: ='Operational Data'!G48*0.00089013 -> 245.4337646 | F13: tonnes
A14: Steam/hot water exported | D14: =+'Operational Data'!G30 -> 0 | F14: GWh | G14: =+'Operational Data'!H30 -> -
A18: Operator’s comments :
A29: Signed: | B29: J Purnell | G29: Date: | H29: 2022-01-31

Sheet Permit Compliance
A1: =+'Cover Page'!$B$29 -> Annual Performance Report 2021 | E1: =+'Cover Page'!$B$33 -> Stoke Energy from Waste Facility
A3: Summary of Permit Compliance
A5: Compliance with permit limits for continuously monitored pollutants
A7: The plant met its emission limits as shown in the table below:
A8: Substance | C8: Percentage time compliant during operation | L8: Notes:
C9: Half-hourly limit | F9: Daily limit | L9: Report to 2 decimal places, i.e. xx.xx% Please provide a brief summary of each notification or non-compliance in the table (rather than just referring to notifications that were sent to the Regulator).
A10: Particulates | C10: 1 | F10: 1
A11: Oxides of nitrogen | C11: 1 | F11: 1
A12: Sulphur dioxide | C12: 1 | F12: 1
A13: Carbon monoxide | C13: 1 | F13: 1
A14: Total organic carbon | C14: 1 | F14: 1
A15: Hydrogen chloride | C15: 0.9999 | F15: 0.9945
A16: Hydrogen fluoride | C16: 1 | F16: 1
A17: Average | C17: 1 | F17: 0.9992
A19: Summary of any notifications or non-compliances under the permit
A20: Date | B20: Summary of notification or non-compliance [including Line/Reference] | E20: Reason | H20: Measures taken to prevent reoccurrence
A21: 2021-11-25 | B21: A2, HCl, Daily limit | E21: Equipment failure | H21: Repairs made
A22: 2021-12-20 | B22: A1, HCl, half hourly limit | E22: Poor or contam. Waste | H22: Increased lime flow
A23: 2021-12-20 | B23: A1, HCl, Daily limit | E23: same event as above | H23: same event as above
A33: Summary of any complaints received and actions to taken to resolve them.
A34: Date | B34: Summary of complaint [including Line/Reference] | E34: Reason * | H34: Measures taken to prevent reoccurrence
E40: * including whether substantiated by the operator or the EA

Sheet Improvements
A1: =+'Cover Page'!$B$29 -> Annual Performance Report 2021 | E1: =+'Cover Page'!$B$33 -> Stoke Energy from Waste Facility
A3: Summary of Plant Improvements
A5: Summary of any efficiency improvements that have been completed within the year.
A6: • LED lamp replacement is an ongoing project. • The enhanced cleaning regime on the ACC is a consolidated practice. • The repairs to the turbine to reduce air ingress on the vacuum side and on the exhaust duct plus a robust programme of air leak detection and repair resulted in an increase in power output and exported energy. • Purchased a ultrasonic cleaning machine for the lime discs to improve the efficiency of the lime slurry injection. The ultrasonic machine will be commissioned at the beginning of 2022 to reduced use of chemicals plus a significant improvement in the life expectancy of the lime turbine discs. Purchased one new lime turbine to improve the reliability and efficiency of the system. Implemented 24 holes lime discs for a better lime slurry distribution. • Continued the replacement program of damaged lagging.
A16: Summary of any permit improvement conditions that have been completed within the year and the resulting environmental benefits.
A17: All permit improvement conditions were completed prior to 2020.
A27: Summary of any changes to the plant or operating techniques which required a variation to the permit and a summary of the resulting environmental impact.
A28: No variations to the permit were required or sought during 2020.
A38: Summary of any other improvements made to the plant or planned to be made and a summary of the resulting environmental benefits.
A39: Additional improvements that have been made to the plant include: • Completed boiler 2 combustion control integration and achieved more stable operating conditions. Both boilers have now new combustion control system. • Replaced PLC of the lime injection system boiler 1. Both boilers have now new PLC. The lime preparation tanks have been fitted with upgraded microwave level sensors. New lime silo protection system installed. • Replaced frequency converter of cross travel and long travel of crane 1. The replacement of the frequency converter of cross travel and long travel of crane 2 is planned for the beginning of 2022. • Two dust probes have been replaced with new upgraded units. Following the Environmental Agency recommendation, CO2 and N2O analysers have been installed. Calibration of gas flow meters will be tentatively performed in 2022 together with QAL2. Replaced CDAS PCs. Installed spare fibre optic link from the analysers to the CDAS PCs. • Implemented reinforced bags for the bag house filters. • In-house NOx reduction test in the view of the implementation of the Best Available Technology. • A few areas of both boiler have been Hastelloy cladded with HVTS (High velocity Thermal Spray) to improve the reliability of the units. • Installation of turbine bearings, waste bunker and tipping hall early warning fire detection systems. • The inspection program of the underground drains continues. • Wells have been installed and underground water investigation carried out. Underground gas and soil sampling has been performed.

Sheet Public Liasion
A1: =+'Cover Page'!$B$29 -> Annual Performance Report 2021 | E1: =+'Cover Page'!$B$33 -> Stoke Energy from Waste Facility
A3: Details of Public & Stakeholder Liasion
A5: Summary of events held during the reporting year.
A6: Date | C6: Description
A7: Across 2021 | C7: MESE conducts monthly meetings with its core stakeholders in order discuss operational, health and safety, and environmental performance.
A16: List of events planned for next year
A17: Date | C17: Description
A18: 2022 | C18: MESE will continue to meet with its core stakeholders on a monthly basis.
A29: If you wish to be involved in the public liasion programme, please contact _________________

Sheet Residue Quality
A1: =+'Cover Page'!$B$29 -> Annual Performance Report 2021 | E1: =+'Cover Page'!$B$33 -> Stoke Energy from Waste Facility
A3: Residue Quality Monitoring Requirements
A5: Summary of monitoring undertaken and compliance
A6: 24 sample IBA monitoring scheme undertaken as per the ESA protocol
A8: 2 IBA samples taken direct from each unit's ash discharger and subjected to full hazard assessment against WM3 - both samples found to be below the hazard thresholds for all applicable hazard categories
A10: Quarterly APCr monitoring performed.
A13: Commentary on any specific events
A14: Date & Event | C14: Description
A27: Residue Quality Monitoring Results
A28: Parameter (unit) | C28: Limit | D28: Normal Operation
D29: Bottom ash | F29: APC Residues
A30: Loss on Ignition (average %) | C30: <5% | D30: 6.25
A31: Total Organic Carbon (average %) | C31: <3% | D31: 0.67
A32: No. of Assessments Undertaken | C32: --- | D32: 24 | F32: 8
A33: No. of Hazardous Results | C33: --- | D33: 0
A35: Comments :
A36: The Loss on Ignition and TOC values above represent the average observed over all samples taken during 2021

Sheet Water
A1: =+'Cover Page'!$B$29 -> Annual Performance Report 2021 | E1: =+'Cover Page'!$B$33 -> Stoke Energy from Waste Facility
A3: Emissions to Water
A5: Summary of monitoring undertaken and compliance
A6: Annual sample taken and analysed. All results below limits given in discharge consent.
A8: Waste water arising from the process is neutralised and recycled as far as is practicible in order to minimise the quantity released to sewer.
A13: Commentary on any specific events
A14: Date & Event | C14: Description
A22: Emissions to Water / Sewer
A23: Parameter | D23: Monitoring Frequency | G23: Limit | H23: Target | I23: Max. | J23: Average
A24: pH | D24: Continuous | G24: 6 - 10 | H24: 6 - 10 | I24: 10.4 | J24: 8.9
A25: Total Suspended Solids (TSS) | D25: Annual | G25: 400 mg/L | H25: <400 mg/L | I25: 21 | J25: 21
A26: Chemical Oxygen Demand (COD) | D26: Annual | G26: 600 mg/L | H26: <600 mg/L | I26: 21 | J26: 21
A27: Sulphate | D27: Annual | G27: 1000 mg/L | H27: <1000 mg/L | I27: 69.8 | J27: 69.8
A28: Phosphorus | D28: Annual | G28: 25 mg/L | H28: <25 mg/L | I28: 0.13 | J28: 0.13
A29: Oil | D29: Annual | G29: nil | H29: nil | I29: nil | J29: nil

Sheet Air (periodic)
A1: =+'Cover Page'!$B$29 -> Annual Performance Report 2021 | E1: =+'Cover Page'!$B$33 -> Stoke Energy from Waste Facility
A3: Emissions to Air (periodically monitored)
A5: Summary of monitoring undertaken, standards used and compliance | M5: Notes:
M6: Template may require adjustment for any bespoke monitoring requirements of permit.
A9: Results of emissions to air that are periodically monitored
A10: Substance | C10: Ref. Period | D10: Emission Limit Value | F10: Average | M10: User to add additional tables as necessary, depending on whether quarterly or bi-annual reporting is required for the compliance year
F11: A1 | G11: A2 | H11: A3 | I11: A4 | J11: A5
A12: Hydrogen fluoride | C12: 1 hr | D12: 2 mg/m3 | F12: 0.17025 | G12: 0.02125
A13: Cd and Th and their compounds | C13: 6-8hrs | D13: 0.05 mg/m3 | F13: 0.00145 | G13: 0.00155
A14: Hg and its compounds | C14: 6-8hrs | D14: 0.05 mg/m3 | F14: 0.004975 | G14: 0.004425
A15: Sb, As, Pb, Cr, Co, Cu, Mn, Ni, V and their compounds | C15: 6-8hrs | D15: 0.5 mg/m3 | F15: 0.05115 | G15: 0.12635
A16: Dioxins & Furans (I-TEQ) | C16: 6-8hrs | D16: 0.1 ng/m3 | F16: 0.063 | G16: 0.06455
A17: PCBs (WHO-TEQ Humans / Mammals) | C17: 6-8hrs | D17: None set ng/m3 | F17: 0.00536 | G17: 0.0046
A18: PCBs (WHO-TEQ Fish) | C18: 6-8hrs | D18: None set ng/m3 | F18: 0.00026 | G18: 0.0002
A19: PCBs (WHO-TEQ Birds) | C19: 6-8hrs | D19: None set ng/m3 | F19: 0.0094 | G19: 0.0479
A20: Dioxins & Furans (WHO-TEQ Humans / Mammals) | C20: 6-8hrs | D20: None set ng/m3 | F20: 0.06025 | G20: 0.06145
A21: Dioxins & Furans (WHO-TEQ Fish) | C21: 6-8hrs | D21: None set ng/m3 | F21: 0.06615 | G21: 0.0697
A22: Dioxins & Furans (WHO-TEQ Birds) | C22: 6-8hrs | D22: None set ng/m3 | F22: 0.10225 | G22: 0.0874
A23: Anthanthrene | C23: 6-8hrs | D23: None set µg/m3 | F23: 0.0065 | G23: 0.00895
A24: Benzo(a)anthracene | C24: 6-8hrs | D24: None set µg/m3 | F24: 0.00795 | G24: 0.00895
A25: Benzo(a)pyrene | C25: 6-8hrs | D25: None set µg/m3 | F25: 0.0065 | G25: 0.0079
A26: Benzo(b)fluoranthene | C26: 6-8hrs | D26: None set µg/m3 | F26: 0.0065 | G26: 0.0079
A27: Benzo(b)naptho(2,1-d) thiophene | C27: 6-8hrs | D27: None set µg/m3 | F27: 0.015 | G27: 0.00895
A28: Benzo(c)phenanthrene | C28: 6-8hrs | D28: None set µg/m3 | F28: 0.0065 | G28: 0.0079
A29: Benzo(ghi)perylene | C29: 6-8hrs | D29: None set µg/m3 | F29: 0.01295 | G29: 0.00895
A30: Benzo(k)fluoranthene | C30: 6-8hrs | D30: None set µg/m3 | F30: 0.0065 | G30: 0.0079
A31: Cholanthrene | C31: 6-8hrs | D31: None set µg/m3 | F31: 0.0065 | G31: 0.0079
A32: Chrysene | C32: 6-8hrs | D32: None set µg/m3 | F32: 0.015 | G32: 0.01
A33: Cyclopenta(cd)pyrene | C33: 6-8hrs | D33: None set µg/m3 | F33: 0.0065 | G33: 0.015
A34: Dibenzo(ai)pyrene | C34: 6-8hrs | D34: None set µg/m3 | F34: 0.0065 | G34: 0.0079
A35: Dibenzo(ah)anthracene | C35: 6-8hrs | D35: None set µg/m3 | F35: 0.00855 | G35: 0.0079
A36: Fluoranthene | C36: 6-8hrs | D36: None set µg/m3 | F36: 0.375 | G36: 0.26
A37: Indeno(123-cd) pyrene | C37: 6-8hrs | D37: None set µg/m3 | F37: 0.00795 | G37: 0.0079
A38: Naphthalene | C38: 6-8hrs | D38: None set µg/m3 | F38: 0.955 | G38: 1.565
A39: Comments :

Sheet Air (CEMS)
A1: =+'Cover Page'!$B$29 -> Annual Performance Report 2021 | I1: =+'Cover Page'!$B$33 -> Stoke Energy from Waste Facility
A3: Emissions to Air (continously monitored)
P4: Notes:
A5: Summary of monitoring undertaken, standards used and compliance | P5: Template may require adjustment for any bespoke monitoring requirements of permit
A6: The substances below are continuously monitored by the plant. Average and maximum emissions are recorded below. | P6: Report to 2 decimal places, i.e. xx.xx%
A11: Results of emissions to air that are continuously monitored (maximum and average values for each line)
A12: Substance | B12: Reference Period | C12: Emission Limit Value | D12: A1 | F12: A2 | H12: A3 | J12: A4 | L12: A5
D13: Max. | E13: Avg. | F13: Max. | G13: Avg. | H13: Max. | I13: Avg. | J13: Max. | K13: Avg. | L13: Max. | M13: Avg.
A14: Oxides of nitrogen | B14: Daily mean | C14: 200 mg/m3 | D14: =NOx!O19 -> 183 | E14: =NOx!N19 -> 176.5833333 | F14: =NOx!O34 -> 176 | G14: =NOx!N34 -> 168.3333333
B15: ½ hourly mean | C15: 400 mg/m3 | D15: =NOx!M19 -> 383 | E15: =NOx!L19 -> 176.5833333 | F15: =NOx!M34 -> 264 | G15: =NOx!L34 -> 168.3333333
A16: Particulates | B16: Daily mean | C16: 10 mg/m3 | D16: =Particulates!O19 -> 9 | E16: =Particulates!N19 -> 3 | F16: =Particulates!O34 -> 7 | G16: =Particulates!N34 -> 1.333333333
B17: ½ hourly mean | C17: 30 mg/m3 | D17: =Particulates!M19 -> 55 | E17: =Particulates!L19 -> 3 | F17: =Particulates!M34 -> 18 | G17: =Particulates!L34 -> 1.333333333
A18: Total Organic Carbon | B18: Daily mean | C18: 10 mg/m3 | D18: =TOC!O19 -> 1 | E18: =TOC!N19 -> 0 | F18: =TOC!O34 -> 3 | G18: =TOC!N34 -> 1.083333333
B19: ½ hourly mean | C19: 20 mg/m3 | D19: =TOC!M19 -> 17 | E19: =TOC!L19 -> 0 | F19: =TOC!M34 -> 14 | G19: =TOC!L34 -> 1.083333333
A20: Hydrogen chloride | B20: Daily mean | C20: 10 mg/m3 | D20: =HCl!O19 -> 21 | E20: =HCl!N19 -> 7.416666667 | F20: =HCl!O34 -> 13 | G20: =HCl!N34 -> 7.916666667
B21: ½ hourly mean | C21: 60 mg/m3 | D21: =HCl!M19 -> 93 | E21: =HCl!L19 -> 7.416666667 | F21: =HCl!M34 -> 65 | G21: =HCl!L34 -> 7.916666667
A22: Sulphur dioxide | B22: Daily mean | C22: 50 mg/m3 | D22: ='SO2'!O19 -> 44 | E22: ='SO2'!N19 -> 24.75 | F22: ='SO2'!O34 -> 46 | G22: ='SO2'!N34 -> 25.08333333
B23: ½ hourly mean | C23: 200 mg/m3 | D23: ='SO2'!M19 -> 198 | E23: ='SO2'!L19 -> 24.75 | F23: ='SO2'!M34 -> 189 | G23: ='SO2'!L34 -> 25.08333333
A24: Carbon monoxide | B24: Daily mean | C24: 50 mg/m3 | D24: ='CO 95% 10 min'!Q19 -> 26 | E24: ='CO 95% 10 min'!P19 -> 8.333333333 | F24: ='CO 95% 10 min'!Q34 -> 33 | G24: ='CO 95% 10 min'!P34 -> 13.66666667
B25: 95%ile 10-min avg * | C25: 150 mg/m3 * | D25: ='CO 95% 10 min'!O19 -> 1489 | E25: ='CO 95% 10 min'!N19 -> 8.333333333 | F25: ='CO 95% 10 min'!O34 -> 600 | G25: ='CO 95% 10 min'!N34 -> 13.66666667
A26: Ammonia | B26: Daily mean | C26: No limit set | D26: ='NH3'!O19 -> 16 | E26: ='NH3'!N19 -> 4.25 | F26: ='NH3'!O34 -> 18 | G26: ='NH3'!N34 -> 5.666666667
A27: * = delete or amend as appropriate
A28: Comments :

Sheet HCl
A1: =+'Cover Page'!$B$29 -> Annual Performance Report 2021 | E1: =+'Cover Page'!$B$33 -> Stoke Energy from Waste Facility
A3: Monitoring of Hydrogen Chloride emissions | D3: Whole Installation | G3: See Notes in Cell Q3 | J3: =+A3 -> Monitoring of Hydrogen Chloride emissions | N3: Per Combustion Line | Q3: Notes:
Q4: User to add logic to complete Whole installation, Table A5:G18. From the data in Per Combustion Line, Table J6:O79, subject to No. of lines installed
A5: mg/Nm3 | B5: 1/2 Hourly Reference Periods | E5: Daily Reference Periods
A6: =+'Cover Page'!C39 -> 2021 | B6: 1/2 hourly HCl ELV | C6: Monthly 1/2 hourly mean | D6: Highest 1/2 hourly maximum | E6: Daily HCl ELV | F6: Monthly daily mean | G6: Highest daily maximum | J6: =+A6 -> 2021 | K6: mg/Nm3 | L6: Monthly 1/2 hourly mean | M6: Monthly 1/2 hourly maximum | N6: Monthly daily mean | O6: Monthly daily maximum
A7: Jan | B7: 60 | C7: =AVERAGE(L7,L22) -> 7.5 | D7: =MAX(M7,M22) -> 41 | E7: 10 | F7: =AVERAGE(N7,N22) -> 7.5 | G7: =MAX(O7,O22) -> 9 | J7: A1 | K7: Jan | L7: 7 | M7: 41 | N7: 7 | O7: 9
A8: Feb | B8: 60 | C8: =AVERAGE(L8,L23) -> 7 | D8: =MAX(M8,M23) -> 25 | E8: 10 | F8: =AVERAGE(N8,N23) -> 7 | G8: =MAX(O8,O23) -> 9 | K8: Feb | L8: 6 | M8: 25 | N8: 6 | O8: 7
A9: Mar | B9: 60 | C9: 7 | D9: 41 | E9: 10 | F9: 7 | G9: 9 | K9: Mar | L9: 6 | M9: 29 | N9: 6 | O9: 8 | Q9: Whole Installation table A5:G18:
A10: Apr | B10: 60 | C10: 6 | D10: 36 | E10: 10 | F10: 6 | G10: 9 | K10: Apr | L10: 4 | M10: 20 | N10: 4 | O10: 6 | Q10: Mean: for 1/2 hourly and daily periods calculate mean of values across all operational combustion lines for the month
A11: May | B11: 60 | C11: 8.5 | D11: 35 | E11: 10 | F11: 8.5 | G11: 21 | K11: May | L11: 9 | M11: 26 | N11: 9 | O11: 21
A12: Jun | B12: 60 | C12: 8 | D12: 53 | E12: 10 | F12: 8 | G12: 10 | K12: Jun | L12: 8 | M12: 46 | N12: 8 | O12: 9
A13: Jul | B13: 60 | C13: 8 | D13: 65 | E13: 10 | F13: 8 | G13: 9 | K13: Jul | L13: 8 | M13: 25 | N13: 8 | O13: 9 | Q13: Maximum: for 1/2 hourly and daily periods use the highest value across all operational combustion lines for the month
A14: Aug | B14: 60 | C14: 8 | D14: 45 | E14: 10 | F14: 8 | G14: 11 | K14: Aug | L14: 8 | M14: 31 | N14: 8 | O14: 10
A15: Sep | B15: 60 | C15: 7.5 | D15: 31 | E15: 10 | F15: 7.5 | G15: 9 | K15: Sep | L15: 8 | M15: 24 | N15: 8 | O15: 9
A16: Oct | B16: 60 | C16: 8.5 | D16: 45 | E16: 10 | F16: 8.5 | G16: 10 | K16: Oct | L16: 9 | M16: 45 | N16: 9 | O16: 9
A17: Nov | B17: 60 | C17: 8 | D17: 53 | E17: 10 | F17: 8 | G17: 13 | K17: Nov | L17: 8 | M17: 30 | N17: 8 | O17: 9
A18: Dec | B18: 60 | C18: 8 | D18: 93 | E18: 10 | F18: 8 | G18: 11 | K18: Dec | L18: 8 | M18: 93 | N18: 8 | O18: 11
K19: Annual | L19: =AVERAGE(L7:L18) -> 7.416666667 | M19: =MAX(M7:M18) -> 93 | N19: =AVERAGE(N7:N18) -> 7.416666667 | O19: =MAX(O7:O18) -> 21
J21: =+A6 -> 2021 | K21: mg/Nm3 | L21: Monthly 1/2 hourly mean | M21: Monthly 1/2 hourly maximum | N21: Monthly daily mean | O21: Monthly daily maximum
J22: A2 | K22: Jan | L22: 8 | M22: 24 | N22: 8 | O22: 9
K23: Feb | L23: 8 | M23: 23 | N23: 8 | O23: 9
K24: Mar | L24: 8 | M24: 41 | N24: 8 | O24: 9
K25: Apr | L25: 8 | M25: 36 | N25: 8 | O25: 9
K26: May | L26: 8 | M26: 35 | N26: 8 | O26: 10
K27: Jun | L27: 8 | M27: 53 | N27: 8 | O27: 10
K28: Jul | L28: 8 | M28: 65 | N28: 8 | O28: 9
K29: Aug | L29: 8 | M29: 45 | N29: 8 | O29: 11
K30: Sep | L30: 7 | M30: 31 | N30: 7 | O30: 8
K31: Oct | L31: 8 | M31: 29 | N31: 8 | O31: 10
K32: Nov | L32: 8 | M32: 53 | N32: 8 | O32: 13
K33: Dec | L33: 8 | M33: 61 | N33: 8 | O33: 9
K34: Annual | L34: =AVERAGE(L22:L33) -> 7.916666667 | M34: =MAX(M22:M33) -> 65 | N34: =AVERAGE(N22:N33) -> 7.916666667 | O34: =MAX(O22:O33) -> 13
J36: =+A6 -> 2021 | K36: mg/Nm3 | L36: Monthly 1/2 hourly mean | M36: Monthly 1/2 hourly maximum | N36: Monthly daily mean | O36: Monthly daily maximum
J37: A3 | K37: Jan
K38: Feb
K39: Mar
K40: Apr
K41: May
K42: Jun
K43: Jul
K44: Aug
K45: Sep
K46: Oct
K47: Nov
A48: Comments : | K48: Dec
K49: Annual | L49: =AVERAGE(L37:L48) ->  | M49: =MAX(M37:M48) -> 0 | N49: =AVERAGE(N37:N48) ->  | O49: =MAX(O37:O48) -> 0
J51: =+A6 -> 2021 | K51: mg/Nm3 | L51: Monthly 1/2 hourly mean | M51: Monthly 1/2 hourly maximum | N51: Monthly daily mean | O51: Monthly daily maximum
J52: A4 | K52: Jan
K53: Feb
K54: Mar
K55: Apr
K56: May
K57: Jun
K58: Jul
K59: Aug
K60: Sep
K61: Oct
K62: Nov
K63: Dec
K64: Annual | L64: =AVERAGE(L52:L63) ->  | M64: =MAX(M52:M63) -> 0 | N64: =AVERAGE(N52:N63) ->  | O64: =MAX(O52:O63) -> 0
J66: =+A6 -> 2021 | K66: mg/Nm3 | L66: Monthly 1/2 hourly mean | M66: Monthly 1/2 hourly maximum | N66: Monthly daily mean | O66: Monthly daily maximum
J67: A5 | K67: Jan
K68: Feb
K69: Mar
K70: Apr
K71: May
K72: Jun
K73: Jul
K74: Aug
K75: Sep
K76: Oct
K77: Nov
K78: Dec
K79: Annual | L79: =AVERAGE(L67:L78) ->  | M79: =MAX(M67:M78) -> 0 | N79: =AVERAGE(N67:N78) ->  | O79: =MAX(O67:O78) -> 0

Sheet SO2
A1: =+'Cover Page'!$B$29 -> Annual Performance Report 2021 | E1: =+'Cover Page'!$B$33 -> Stoke Energy from Waste Facility
A3: Monitoring of Sulphur dioxide emissions | D3: Whole Installation | G3: See Notes in Cell Q3 | J3: =+A3 -> Monitoring of Sulphur dioxide emissions | N3: Per Combustion Line | Q3: Notes:
Q4: User to add logic to complete Whole installation, Table A5:G18. From the data in Per Combustion Line, Table J6:O79, subject to No. of lines installed
A5: mg/Nm3 | B5: 1/2 Hourly Reference Periods | E5: Daily Reference Periods
A6: =+'Cover Page'!C39 -> 2021 | B6: 1/2 hourly SO2 ELV | C6: Monthly 1/2 hourly mean | D6: Highest 1/2 hourly maximum | E6: Daily SO2 ELV | F6: Monthly daily mean | G6: Highest daily maximum | J6: =+A6 -> 2021 | K6: mg/Nm3 | L6: Monthly 1/2 hourly mean | M6: Monthly 1/2 hourly maximum | N6: Monthly daily mean | O6: Monthly daily maximum
A7: Jan | B7: 200 | C7: =AVERAGE(L7,L22) -> 27.5 | D7: =MAX(M7,M22) -> 86 | E7: 50 | F7: =AVERAGE(N7,N22) -> 27.5 | G7: =MAX(O7,O22) -> 37 | J7: A1 | K7: Jan | L7: 32 | M7: 79 | N7: 32 | O7: 37
A8: Feb | B8: 200 | C8: =AVERAGE(L8,L23) -> 31 | D8: =MAX(M8,M23) -> 172 | E8: 50 | F8: =AVERAGE(N8,N23) -> 31 | G8: =MAX(O8,O23) -> 39 | K8: Feb | L8: 34 | M8: 172 | N8: 34 | O8: 39
A9: Mar | B9: 200 | C9: 31 | D9: 130 | E9: 50 | F9: 31 | G9: 44 | K9: Mar | L9: 34 | M9: 130 | N9: 34 | O9: 44 | Q9: Whole Installation table A5:G18:
A10: Apr | B10: 200 | C10: 28 | D10: 104 | E10: 50 | F10: 28 | G10: 37 | K10: Apr | L10: 33 | M10: 91 | N10: 33 | O10: 37 | Q10: Mean: for 1/2 hourly and daily periods calculate mean of values across all operational combustion lines for the month
A11: May | B11: 200 | C11: 25 | D11: 92 | E11: 50 | F11: 25 | G11: 40 | K11: May | L11: 28 | M11: 92 | N11: 28 | O11: 40
A12: Jun | B12: 200 | C12: 21 | D12: 117 | E12: 50 | F12: 21 | G12: 27 | K12: Jun | L12: 21 | M12: 82 | N12: 21 | O12: 26
A13: Jul | B13: 200 | C13: 18 | D13: 122 | E13: 50 | F13: 18 | G13: 27 | K13: Jul | L13: 17 | M13: 84 | N13: 17 | O13: 22 | Q13: Maximum: for 1/2 hourly and daily periods use the highest value across all operational combustion lines for the month
A14: Aug | B14: 200 | C14: 16.5 | D14: 104 | E14: 50 | F14: 16.5 | G14: 24 | K14: Aug | L14: 15 | M14: 56 | N14: 15 | O14: 22
A15: Sep | B15: 200 | C15: 23 | D15: 127 | E15: 50 | F15: 23 | G15: 35 | K15: Sep | L15: 16 | M15: 127 | N15: 16 | O15: 24
A16: Oct | B16: 200 | C16: 25.5 | D16: 155 | E16: 50 | F16: 25.5 | G16: 41 | K16: Oct | L16: 19 | M16: 81 | N16: 19 | O16: 28
A17: Nov | B17: 200 | C17: 27 | D17: 193 | E17: 50 | F17: 27 | G17: 46 | K17: Nov | L17: 21 | M17: 193 | N17: 21 | O17: 44
A18: Dec | B18: 200 | C18: 25.5 | D18: 198 | E18: 50 | F18: 25.5 | G18: 34 | K18: Dec | L18: 27 | M18: 198 | N18: 27 | O18: 34
K19: Annual | L19: =AVERAGE(L7:L18) -> 24.75 | M19: =MAX(M7:M18) -> 198 | N19: =AVERAGE(N7:N18) -> 24.75 | O19: =MAX(O7:O18) -> 44
J21: =+A6 -> 2021 | K21: mg/Nm3 | L21: Monthly 1/2 hourly mean | M21: Monthly 1/2 hourly maximum | N21: Monthly daily mean | O21: Monthly daily maximum
J22: A2 | K22: Jan | L22: 23 | M22: 86 | N22: 23 | O22: 35
K23: Feb | L23: 28 | M23: 163 | N23: 28 | O23: 32
K24: Mar | L24: 28 | M24: 77 | N24: 28 | O24: 36
K25: Apr | L25: 23 | M25: 104 | N25: 23 | O25: 30
K26: May | L26: 22 | M26: 71 | N26: 22 | O26: 32
K27: Jun | L27: 21 | M27: 117 | N27: 21 | O27: 27
K28: Jul | L28: 19 | M28: 122 | N28: 19 | O28: 27
K29: Aug | L29: 18 | M29: 104 | N29: 18 | O29: 24
K30: Sep | L30: 30 | M30: 86 | N30: 30 | O30: 35
K31: Oct | L31: 32 | M31: 155 | N31: 32 | O31: 41
K32: Nov | L32: 33 | M32: 171 | N32: 33 | O32: 46
K33: Dec | L33: 24 | M33: 189 | N33: 24 | O33: 30
K34: Annual | L34: =AVERAGE(L22:L33) -> 25.08333333 | M34: =MAX(M22:M33) -> 189 | N34: =AVERAGE(N22:N33) -> 25.08333333 | O34: =MAX(O22:O33) -> 46
J36: =+A6 -> 2021 | K36: mg/Nm3 | L36: Monthly 1/2 hourly mean | M36: Monthly 1/2 hourly maximum | N36: Monthly daily mean | O36: Monthly daily maximum
J37: A3 | K37: Jan
K38: Feb
K39: Mar
K40: Apr
K41: May
K42: Jun
K43: Jul
K44: Aug
K45: Sep
K46: Oct
K47: Nov
A48: Comments : | K48: Dec
K49: Annual | L49: =AVERAGE(L37:L48) ->  | M49: =MAX(M37:M48) -> 0 | N49: =AVERAGE(N37:N48) ->  | O49: =MAX(O37:O48) -> 0
J51: =+A6 -> 2021 | K51: mg/Nm3 | L51: Monthly 1/2 hourly mean | M51: Monthly 1/2 hourly maximum | N51: Monthly daily mean | O51: Monthly daily maximum
J52: A4 | K52: Jan
K53: Feb
K54: Mar
K55: Apr
K56: May
K57: Jun
K58: Jul
K59: Aug
K60: Sep
K61: Oct
K62: Nov
K63: Dec
K64: Annual | L64: =AVERAGE(L52:L63) ->  | M64: =MAX(M52:M63) -> 0 | N64: =AVERAGE(N52:N63) ->  | O64: =MAX(O52:O63) -> 0
J66: =+A6 -> 2021 | K66: mg/Nm3 | L66: Monthly 1/2 hourly mean | M66: Monthly 1/2 hourly maximum | N66: Monthly daily mean | O66: Monthly daily maximum
J67: A5 | K67: Jan
K68: Feb
K69: Mar
K70: Apr
K71: May
K72: Jun
K73: Jul
K74: Aug
K75: Sep
K76: Oct
K77: Nov
K78: Dec
K79: Annual | L79: =AVERAGE(L67:L78) ->  | M79: =MAX(M67:M78) -> 0 | N79: =AVERAGE(N67:N78) ->  | O79: =MAX(O67:O78) -> 0

Sheet NOx
A1: =+'Cover Page'!$B$29 -> Annual Performance Report 2021 | E1: =+'Cover Page'!$B$33 -> Stoke Energy from Waste Facility
A3: Monitoring of Oxides of Nitrogen emissions | D3: Whole Installation | G3: See Notes in Cell Q3 | J3: =+A3 -> Monitoring of Oxides of Nitrogen emissions | N3: Per Combustion Line | Q3: Notes:
Q4: User to add logic to complete Whole installation, Table A5:G18. From the data in Per Combustion Line, Table J6:O79, subject to No. of lines installed
A5: mg/Nm3 | B5: 1/2 Hourly Reference Periods | E5: Daily Reference Periods
A6: =+'Cover Page'!C39 -> 2021 | B6: 1/2 hourly NOx ELV | C6: Monthly 1/2 hourly mean | D6: Highest 1/2 hourly maximum | E6: Daily NOx ELV | F6: Monthly daily mean | G6: Highest daily maximum | J6: =+A6 -> 2021 | K6: mg/Nm3 | L6: Monthly 1/2 hourly mean | M6: Monthly 1/2 hourly maximum | N6: Monthly daily mean | O6: Monthly daily maximum
A7: Jan | B7: 400 | C7: =AVERAGE(L7,L22) -> 171 | D7: =MAX(M7,M22) -> 383 | E7: 200 | F7: =AVERAGE(N7,N22) -> 171 | G7: =MAX(O7,O22) -> 182 | J7: A1 | K7: Jan | L7: 176 | M7: 383 | N7: 176 | O7: 182
A8: Feb | B8: 400 | C8: =AVERAGE(L8,L23) -> 172 | D8: =MAX(M8,M23) -> 237 | E8: 200 | F8: =AVERAGE(N8,N23) -> 172 | G8: =MAX(O8,O23) -> 179 | K8: Feb | L8: 175 | M8: 237 | N8: 175 | O8: 179
A9: Mar | B9: 400 | C9: 171.5 | D9: 246 | E9: 200 | F9: 171.5 | G9: 179 | K9: Mar | L9: 177 | M9: 192 | N9: 177 | O9: 179 | Q9: Whole Installation table A5:G18:
A10: Apr | B10: 400 | C10: 174 | D10: 226 | E10: 200 | F10: 174 | G10: 177 | K10: Apr | L10: 176 | M10: 199 | N10: 176 | O10: 177 | Q10: Mean: for 1/2 hourly and daily periods calculate mean of values across all operational combustion lines for the month
A11: May | B11: 400 | C11: 168 | D11: 292 | E11: 200 | F11: 168 | G11: 183 | K11: May | L11: 175 | M11: 292 | N11: 175 | O11: 183
A12: Jun | B12: 400 | C12: 171.5 | D12: 304 | E12: 200 | F12: 171.5 | G12: 182 | K12: Jun | L12: 177 | M12: 304 | N12: 177 | O12: 182
A13: Jul | B13: 400 | C13: 172 | D13: 244 | E13: 200 | F13: 172 | G13: 178 | K13: Jul | L13: 177 | M13: 185 | N13: 177 | O13: 178 | Q13: Maximum: for 1/2 hourly and daily periods use the highest value across all operational combustion lines for the month
A14: Aug | B14: 400 | C14: 172 | D14: 254 | E14: 200 | F14: 172 | G14: 181 | K14: Aug | L14: 178 | M14: 254 | N14: 178 | O14: 181
A15: Sep | B15: 400 | C15: 173.5 | D15: 257 | E15: 200 | F15: 173.5 | G15: 180 | K15: Sep | L15: 175 | M15: 257 | N15: 175 | O15: 180
A16: Oct | B16: 400 | C16: 174 | D16: 234 | E16: 200 | F16: 174 | G16: 178 | K16: Oct | L16: 177 | M16: 188 | N16: 177 | O16: 178
A17: Nov | B17: 400 | C17: 174.5 | D17: 278 | E17: 200 | F17: 174.5 | G17: 182 | K17: Nov | L17: 178 | M17: 278 | N17: 178 | O17: 182
A18: Dec | B18: 400 | C18: 175.5 | D18: 264 | E18: 200 | F18: 175.5 | G18: 179 | K18: Dec | L18: 178 | M18: 210 | N18: 178 | O18: 179
K19: Annual | L19: =AVERAGE(L7:L18) -> 176.5833333 | M19: =MAX(M7:M18) -> 383 | N19: =AVERAGE(N7:N18) -> 176.5833333 | O19: =MAX(O7:O18) -> 183
J21: =+A6 -> 2021 | K21: mg/Nm3 | L21: Monthly 1/2 hourly mean | M21: Monthly 1/2 hourly maximum | N21: Monthly daily mean | O21: Monthly daily maximum
J22: A2 | K22: Jan | L22: 166 | M22: 254 | N22: 166 | O22: 170
K23: Feb | L23: 169 | M23: 218 | N23: 169 | O23: 172
K24: Mar | L24: 166 | M24: 246 | N24: 166 | O24: 173
K25: Apr | L25: 172 | M25: 226 | N25: 172 | O25: 176
K26: May | L26: 161 | M26: 187 | N26: 161 | O26: 167
K27: Jun | L27: 166 | M27: 186 | N27: 166 | O27: 172
K28: Jul | L28: 167 | M28: 244 | N28: 167 | O28: 172
K29: Aug | L29: 166 | M29: 239 | N29: 166 | O29: 174
K30: Sep | L30: 172 | M30: 199 | N30: 172 | O30: 174
K31: Oct | L31: 171 | M31: 234 | N31: 171 | O31: 173
K32: Nov | L32: 171 | M32: 218 | N32: 171 | O32: 175
K33: Dec | L33: 173 | M33: 264 | N33: 173 | O33: 176
K34: Annual | L34: =AVERAGE(L22:L33) -> 168.3333333 | M34: =MAX(M22:M33) -> 264 | N34: =AVERAGE(N22:N33) -> 168.3333333 | O34: =MAX(O22:O33) -> 176
J36: =+A6 -> 2021 | K36: mg/Nm3 | L36: Monthly 1/2 hourly mean | M36: Monthly 1/2 hourly maximum | N36: Monthly daily mean | O36: Monthly daily maximum
J37: A3 | K37: Jan
K38: Feb
K39: Mar
K40: Apr
K41: May
K42: Jun
K43: Jul
K44: Aug
K45: Sep
K46: Oct
K47: Nov
A48: Comments : | K48: Dec
K49: Annual | L49: =AVERAGE(L37:L48) ->  | M49: =MAX(M37:M48) -> 0 | N49: =AVERAGE(N37:N48) ->  | O49: =MAX(O37:O48) -> 0
J51: =+A6 -> 2021 | K51: mg/Nm3 | L51: Monthly 1/2 hourly mean | M51: Monthly 1/2 hourly maximum | N51: Monthly daily mean | O51: Monthly daily maximum
J52: A4 | K52: Jan
K53: Feb
K54: Mar
K55: Apr
K56: May
K57: Jun
K58: Jul
K59: Aug
K60: Sep
K61: Oct
K62: Nov
K63: Dec
K64: Annual | L64: =AVERAGE(L52:L63) ->  | M64: =MAX(M52:M63) -> 0 | N64: =AVERAGE(N52:N63) ->  | O64: =MAX(O52:O63) -> 0
J66: =+A6 -> 2021 | K66: mg/Nm3 | L66: Monthly 1/2 hourly mean | M66: Monthly 1/2 hourly maximum | N66: Monthly daily mean | O66: Monthly daily maximum
J67: A5 | K67: Jan
K68: Feb
K69: Mar
K70: Apr
K71: May
K72: Jun
K73: Jul
K74: Aug
K75: Sep
K76: Oct
K77: Nov
K78: Dec
K79: Annual | L79: =AVERAGE(L67:L78) ->  | M79: =MAX(M67:M78) -> 0 | N79: =AVERAGE(N67:N78) ->  | O79: =MAX(O67:O78) -> 0

Sheet TOC
A1: =+'Cover Page'!$B$29 -> Annual Performance Report 2021 | E1: =+'Cover Page'!$B$33 -> Stoke Energy from Waste Facility
A3: Monitoring of Total organic carbon emissions | D3: Whole Installation | G3: See Notes in Cell Q3 | J3: =+A3 -> Monitoring of Total organic carbon emissions | N3: Per Combustion Line | Q3: Notes:
Q4: User to add logic to complete Whole installation, Table A5:G18. From the data in Per Combustion Line, Table J6:O79, subject to No. of lines installed
A5: mg/Nm3 | B5: 1/2 Hourly Reference Periods | E5: Daily Reference Periods
A6: =+'Cover Page'!C39 -> 2021 | B6: 1/2 hourly TOC ELV | C6: Monthly 1/2 hourly mean | D6: Highest 1/2 hourly maximum | E6: Daily TOC ELV | F6: Monthly daily mean | G6: Highest daily maximum | J6: =+A6 -> 2021 | K6: mg/Nm3 | L6: Monthly 1/2 hourly mean | M6: Monthly 1/2 hourly maximum | N6: Monthly daily mean | O6: Monthly daily maximum
A7: Jan | B7: 20 | C7: =AVERAGE(L7,L22) -> 0 | D7: =MAX(M7,M22) -> 5 | E7: 10 | F7: =AVERAGE(N7,N22) -> 0 | G7: =MAX(O7,O22) -> 1 | J7: A1 | K7: Jan | L7: 0 | M7: 4 | N7: 0 | O7: 1
A8: Feb | B8: 20 | C8: =AVERAGE(L8,L23) -> 0 | D8: =MAX(M8,M23) -> 10 | E8: 10 | F8: =AVERAGE(N8,N23) -> 0 | G8: =MAX(O8,O23) -> 1 | K8: Feb | L8: 0 | M8: 4 | N8: 0 | O8: 1
A9: Mar | B9: 20 | C9: 0 | D9: 3 | E9: 10 | F9: 0 | G9: 2 | K9: Mar | L9: 0 | M9: 3 | N9: 0 | O9: 0 | Q9: Whole Installation table A5:G18:
A10: Apr | B10: 20 | C10: 0 | D10: 7 | E10: 10 | F10: 0 | G10: 2 | K10: Apr | L10: 0 | M10: 1 | N10: 0 | O10: 0 | Q10: Mean: for 1/2 hourly and daily periods calculate mean of values across all operational combustion lines for the month
A11: May | B11: 20 | C11: 1 | D11: 8 | E11: 10 | F11: 1 | G11: 3 | K11: May | L11: 0 | M11: 4 | N11: 0 | O11: 1
A12: Jun | B12: 20 | C12: 1 | D12: 9 | E12: 10 | F12: 1 | G12: 2 | K12: Jun | L12: 0 | M12: 9 | N12: 0 | O12: 0
A13: Jul | B13: 20 | C13: 1 | D13: 5 | E13: 10 | F13: 1 | G13: 2 | K13: Jul | L13: 0 | M13: 2 | N13: 0 | O13: 0 | Q13: Maximum: for 1/2 hourly and daily periods use the highest value across all operational combustion lines for the month
A14: Aug | B14: 20 | C14: 1 | D14: 8 | E14: 10 | F14: 1 | G14: 2 | K14: Aug | L14: 0 | M14: 1 | N14: 0 | O14: 0
A15: Sep | B15: 20 | C15: 1 | D15: 4 | E15: 10 | F15: 1 | G15: 2 | K15: Sep | L15: 0 | M15: 3 | N15: 0 | O15: 1
A16: Oct | B16: 20 | C16: 1 | D16: 4 | E16: 10 | F16: 1 | G16: 2 | K16: Oct | L16: 0 | M16: 4 | N16: 0 | O16: 0
A17: Nov | B17: 20 | C17: 0.5 | D17: 17 | E17: 10 | F17: 0.5 | G17: 2 | K17: Nov | L17: 0 | M17: 17 | N17: 0 | O17: 0
A18: Dec | B18: 20 | C18: 0 | D18: 14 | E18: 10 | F18: 0 | G18: 1 | K18: Dec | L18: 0 | M18: 5 | N18: 0 | O18: 1
K19: Annual | L19: =AVERAGE(L7:L18) -> 0 | M19: =MAX(M7:M18) -> 17 | N19: =AVERAGE(N7:N18) -> 0 | O19: =MAX(O7:O18) -> 1
J21: =+A6 -> 2021 | K21: mg/Nm3 | L21: Monthly 1/2 hourly mean | M21: Monthly 1/2 hourly maximum | N21: Monthly daily mean | O21: Monthly daily maximum
J22: A2 | K22: Jan | L22: 0 | M22: 5 | N22: 0 | O22: 0
K23: Feb | L23: 0 | M23: 10 | N23: 0 | O23: 0
K24: Mar | L24: 0 | M24: 3 | N24: 0 | O24: 2
K25: Apr | L25: 0 | M25: 7 | N25: 0 | O25: 2
K26: May | L26: 2 | M26: 8 | N26: 2 | O26: 3
K27: Jun | L27: 2 | M27: 9 | N27: 2 | O27: 2
K28: Jul | L28: 2 | M28: 5 | N28: 2 | O28: 2
K29: Aug | L29: 2 | M29: 8 | N29: 2 | O29: 2
K30: Sep | L30: 2 | M30: 4 | N30: 2 | O30: 2
K31: Oct | L31: 2 | M31: 4 | N31: 2 | O31: 2
K32: Nov | L32: 1 | M32: 3 | N32: 1 | O32: 2
K33: Dec | L33: 0 | M33: 14 | N33: 0 | O33: 1
K34: Annual | L34: =AVERAGE(L22:L33) -> 1.083333333 | M34: =MAX(M22:M33) -> 14 | N34: =AVERAGE(N22:N33) -> 1.083333333 | O34: =MAX(O22:O33) -> 3
J36: =+A6 -> 2021 | K36: mg/Nm3 | L36: Monthly 1/2 hourly mean | M36: Monthly 1/2 hourly maximum | N36: Monthly daily mean | O36: Monthly daily maximum
J37: A3 | K37: Jan
K38: Feb
K39: Mar
K40: Apr
K41: May
K42: Jun
K43: Jul
K44: Aug
K45: Sep
K46: Oct
K47: Nov
A48: Comments : | K48: Dec
K49: Annual | L49: =AVERAGE(L37:L48) ->  | M49: =MAX(M37:M48) -> 0 | N49: =AVERAGE(N37:N48) ->  | O49: =MAX(O37:O48) -> 0
J51: =+A6 -> 2021 | K51: mg/Nm3 | L51: Monthly 1/2 hourly mean | M51: Monthly 1/2 hourly maximum | N51: Monthly daily mean | O51: Monthly daily maximum
J52: A4 | K52: Jan
K53: Feb
K54: Mar
K55: Apr
K56: May
K57: Jun
K58: Jul
K59: Aug
K60: Sep
K61: Oct
K62: Nov
K63: Dec
K64: Annual | L64: =AVERAGE(L52:L63) ->  | M64: =MAX(M52:M63) -> 0 | N64: =AVERAGE(N52:N63) ->  | O64: =MAX(O52:O63) -> 0
J66: =+A6 -> 2021 | K66: mg/Nm3 | L66: Monthly 1/2 hourly mean | M66: Monthly 1/2 hourly maximum | N66: Monthly daily mean | O66: Monthly daily maximum
J67: A5 | K67: Jan
K68: Feb
K69: Mar
K70: Apr
K71: May
K72: Jun
K73: Jul
K74: Aug
K75: Sep
K76: Oct
K77: Nov
K78: Dec
K79: Annual | L79: =AVERAGE(L67:L78) ->  | M79: =MAX(M67:M78) -> 0 | N79: =AVERAGE(N67:N78) ->  | O79: =MAX(O67:O78) -> 0

Sheet Particulates
A1: =+'Cover Page'!$B$29 -> Annual Performance Report 2021 | E1: =+'Cover Page'!$B$33 -> Stoke Energy from Waste Facility
A3: Monitoring of Particulate matter emissions | D3: Whole Installation | G3: See Notes in Cell Q3 | J3: =+A3 -> Monitoring of Particulate matter emissions | N3: Per Combustion Line | Q3: Notes:
Q4: User to add logic to complete Whole installation, Table A5:G18. From the data in Per Combustion Line, Table J6:O79, subject to No. of lines installed
A5: mg/Nm3 | B5: 1/2 Hourly Reference Periods | E5: Daily Reference Periods
A6: =+'Cover Page'!C39 -> 2021 | B6: 1/2 hourly PM ELV | C6: Monthly 1/2 hourly mean | D6: Highest 1/2 hourly maximum | E6: Daily PM ELV | F6: Monthly daily mean | G6: Highest daily maximum | J6: =+A6 -> 2021 | K6: mg/Nm3 | L6: Monthly 1/2 hourly mean | M6: Monthly 1/2 hourly maximum | N6: Monthly daily mean | O6: Monthly daily maximum
A7: Jan | B7: 30 | C7: =AVERAGE(L7,L22) -> 1.5 | D7: =MAX(M7,M22) -> 7 | E7: 10 | F7: =AVERAGE(N7,N22) -> 1.5 | G7: =MAX(O7,O22) -> 4 | J7: A1 | K7: Jan | L7: 2 | M7: 7 | N7: 2 | O7: 4
A8: Feb | B8: 30 | C8: =AVERAGE(L8,L23) -> 1 | D8: =MAX(M8,M23) -> 8 | E8: 10 | F8: =AVERAGE(N8,N23) -> 1 | G8: =MAX(O8,O23) -> 3 | K8: Feb | L8: 2 | M8: 8 | N8: 2 | O8: 3
A9: Mar | B9: 30 | C9: 3 | D9: 17 | E9: 10 | F9: 3 | G9: 6 | K9: Mar | L9: 3 | M9: 9 | N9: 3 | O9: 4 | Q9: Whole Installation table A5:G18:
A10: Apr | B10: 30 | C10: 3.5 | D10: 18 | E10: 10 | F10: 3.5 | G10: 7 | K10: Apr | L10: 3 | M10: 7 | N10: 3 | O10: 3 | Q10: Mean: for 1/2 hourly and daily periods calculate mean of values across all operational combustion lines for the month
A11: May | B11: 30 | C11: 2.5 | D11: 55 | E11: 10 | F11: 2.5 | G11: 9 | K11: May | L11: 4 | M11: 55 | N11: 4 | O11: 9
A12: Jun | B12: 30 | C12: 2 | D12: 25 | E12: 10 | F12: 2 | G12: 8 | K12: Jun | L12: 3 | M12: 25 | N12: 3 | O12: 8
A13: Jul | B13: 30 | C13: 3 | D13: 8 | E13: 10 | F13: 3 | G13: 5 | K13: Jul | L13: 4 | M13: 8 | N13: 4 | O13: 5 | Q13: Maximum: for 1/2 hourly and daily periods use the highest value across all operational combustion lines for the month
A14: Aug | B14: 30 | C14: 3.5 | D14: 12 | E14: 10 | F14: 3.5 | G14: 7 | K14: Aug | L14: 4 | M14: 12 | N14: 4 | O14: 7
A15: Sep | B15: 30 | C15: 2 | D15: 13 | E15: 10 | F15: 2 | G15: 7 | K15: Sep | L15: 3 | M15: 13 | N15: 3 | O15: 7
A16: Oct | B16: 30 | C16: 1.5 | D16: 5 | E16: 10 | F16: 1.5 | G16: 3 | K16: Oct | L16: 3 | M16: 5 | N16: 3 | O16: 3
A17: Nov | B17: 30 | C17: 1.5 | D17: 25 | E17: 10 | F17: 1.5 | G17: 5 | K17: Nov | L17: 3 | M17: 25 | N17: 3 | O17: 5
A18: Dec | B18: 30 | C18: 1 | D18: 21 | E18: 10 | F18: 1 | G18: 7 | K18: Dec | L18: 2 | M18: 21 | N18: 2 | O18: 7
K19: Annual | L19: =AVERAGE(L7:L18) -> 3 | M19: =MAX(M7:M18) -> 55 | N19: =AVERAGE(N7:N18) -> 3 | O19: =MAX(O7:O18) -> 9
J21: =+A6 -> 2021 | K21: mg/Nm3 | L21: Monthly 1/2 hourly mean | M21: Monthly 1/2 hourly maximum | N21: Monthly daily mean | O21: Monthly daily maximum
J22: A2 | K22: Jan | L22: 1 | M22: 6 | N22: 1 | O22: 3
K23: Feb | L23: 0 | M23: 2 | N23: 0 | O23: 1
K24: Mar | L24: 3 | M24: 17 | N24: 3 | O24: 6
K25: Apr | L25: 4 | M25: 18 | N25: 4 | O25: 7
K26: May | L26: 1 | M26: 17 | N26: 1 | O26: 7
K27: Jun | L27: 1 | M27: 2 | N27: 1 | O27: 1
K28: Jul | L28: 2 | M28: 7 | N28: 2 | O28: 4
K29: Aug | L29: 3 | M29: 9 | N29: 3 | O29: 5
K30: Sep | L30: 1 | M30: 7 | N30: 1 | O30: 3
K31: Oct | L31: 0 | M31: 0 | N31: 0 | O31: 0
K32: Nov | L32: 0 | M32: 0 | N32: 0 | O32: 0
K33: Dec | L33: 0 | M33: 0 | N33: 0 | O33: 0
K34: Annual | L34: =AVERAGE(L22:L33) -> 1.333333333 | M34: =MAX(M22:M33) -> 18 | N34: =AVERAGE(N22:N33) -> 1.333333333 | O34: =MAX(O22:O33) -> 7
J36: =+A6 -> 2021 | K36: mg/Nm3 | L36: Monthly 1/2 hourly mean | M36: Monthly 1/2 hourly maximum | N36: Monthly daily mean | O36: Monthly daily maximum
J37: A3 | K37: Jan
K38: Feb
K39: Mar
K40: Apr
K41: May
K42: Jun
K43: Jul
K44: Aug
K45: Sep
K46: Oct
K47: Nov
A48: Comments : | K48: Dec
K49: Annual | L49: =AVERAGE(L37:L48) ->  | M49: =MAX(M37:M48) -> 0 | N49: =AVERAGE(N37:N48) ->  | O49: =MAX(O37:O48) -> 0
J51: =+A6 -> 2021 | K51: mg/Nm3 | L51: Monthly 1/2 hourly mean | M51: Monthly 1/2 hourly maximum | N51: Monthly daily mean | O51: Monthly daily maximum
J52: A4 | K52: Jan
K53: Feb
K54: Mar
K55: Apr
K56: May
K57: Jun
K58: Jul
K59: Aug
K60: Sep
K61: Oct
K62: Nov
K63: Dec
K64: Annual | L64: =AVERAGE(L52:L63) ->  | M64: =MAX(M52:M63) -> 0 | N64: =AVERAGE(N52:N63) ->  | O64: =MAX(O52:O63) -> 0
J66: =+A6 -> 2021 | K66: mg/Nm3 | L66: Monthly 1/2 hourly mean | M66: Monthly 1/2 hourly maximum | N66: Monthly daily mean | O66: Monthly daily maximum
J67: A5 | K67: Jan
K68: Feb
K69: Mar
K70: Apr
K71: May
K72: Jun
K73: Jul
K74: Aug
K75: Sep
K76: Oct
K77: Nov
K78: Dec
K79: Annual | L79: =AVERAGE(L67:L78) ->  | M79: =MAX(M67:M78) -> 0 | N79: =AVERAGE(N67:N78) ->  | O79: =MAX(O67:O78) -> 0

Sheet CO 95% 10 min
A1: =+'Cover Page'!$B$29 -> Annual Performance Report 2021 | E1: =+'Cover Page'!$B$33 -> Stoke Energy from Waste Facility
A3: Monitoring of Carbon Monoxide (10-minute avg) | E3: Whole Installation | H3: See Notes in Cell S3 | J3: =+A3 -> Monitoring of Carbon Monoxide (10-minute avg) | O3: Per Combustion Line | Q3: Notes: | S3: Notes:
S4: User to add logic to complete Whole installation, Table A5:H18. From the data in Per Combustion Line, Table K6:Q79, subject to No. of lines installed
A5: mg/Nm3 | B5: 10-minute Reference Periods | F5: Daily Reference Periods
A6: =+'Cover Page'!C39 -> 2021 | B6: 95%ile 10-min avg CO ELV | C6: 95%ile 10-min avg maximum | D6: Monthly CO 10-min avg mean | E6: 10-min avg maximum | F6: Daily CO ELV | G6: Monthly daily mean | H6: Highest daily maximum | K6: =+A6 -> 2021 | L6: mg/Nm3 | M6: 95%ile 10-min avg maximum | N6: Monthly CO 10-min avg mean | O6: 10-min avg maximum | P6: Monthly daily mean | Q6: Monthly daily maximum
A7: Jan | B7: 150 | C7: =MAX(M7,M22) -> 29.98 | D7: =AVERAGE(N7,N22) -> 18.5 | E7: =MAX(O7,O22) -> 468 | F7: 50 | G7: =AVERAGE(P7,P22) -> 18.5 | H7: =MAX(Q7,Q22) -> 29 | K7: A1 | L7: Jan | M7: 21.27 | N7: 14 | O7: 178 | P7: 14 | Q7: 20
A8: Feb | B8: =+B7 -> 150 | C8: =MAX(M8,M23) -> 31.16 | D8: =AVERAGE(N8,N23) -> 18 | E8: =MAX(O8,O23) -> 1489 | F8: =+F7 -> 50 | G8: =AVERAGE(P8,P23) -> 18 | H8: =MAX(Q8,Q23) -> 26 | L8: Feb | M8: 20.51 | N8: 14 | O8: 1489 | P8: 14 | Q8: 26
A9: Mar | B9: =+B8 -> 150 | C9: 26.77 | D9: 15 | E9: 318 | F9: =+F8 -> 50 | G9: 15 | H9: 33 | L9: Mar | M9: 17.06 | N9: 11 | O9: 240 | P9: 11 | Q9: 17 | S9: Whole Installation table A5:H18:
A10: Apr | B10: 150 | C10: 28.39 | D10: 14.5 | E10: 600 | F10: 50 | G10: 14.5 | H10: 27 | L10: Apr | M10: 11.61 | N10: 9 | O10: 51 | P10: 9 | Q10: 10 | S10: Mean: for 10-min and daily periods use average of all operational combustion lines.
A11: May | B11: 150 | C11: 21.31 | D11: 9.5 | E11: 269 | F11: 50 | G11: 9.5 | H11: 20 | L11: May | M11: 8.68 | N11: 5 | O11: 182 | P11: 5 | Q11: 12
A12: Jun | B12: 150 | C12: 15.67 | D12: 6 | E12: 76 | F12: 50 | G12: 6 | H12: 15 | L12: Jun | M12: 7.06 | N12: 4 | O12: 76 | P12: 4 | Q12: 6
A13: Jul | B13: 150 | C13: 10.3 | D13: 5.5 | E13: 207 | F13: 50 | G13: 5.5 | H13: 11 | L13: Jul | M13: 7.24 | N13: 4 | O13: 169 | P13: 4 | Q13: 11 | S13: Maximum: for 10-min and daily periods use the highest of all operational combustion lines in any month.
A14: Aug | B14: 150 | C14: 10.97 | D14: 6.5 | E14: 466 | F14: 50 | G14: 6.5 | H14: 22 | L14: Aug | M14: 9.66 | N14: 5 | O14: 228 | P14: 5 | Q14: 9
A15: Sep | B15: 150 | C15: 15.72 | D15: 8 | E15: 231 | F15: 50 | G15: 8 | H15: 14 | L15: Sep | M15: 9.14 | N15: 5 | O15: 70 | P15: 5 | Q15: 11
A16: Oct | B16: 150 | C16: 13.8 | D16: 8 | E16: 176 | F16: 50 | G16: 8 | H16: 13 | L16: Oct | M16: 9.58 | N16: 6 | O16: 117 | P16: 6 | Q16: 7
A17: Nov | B17: 150 | C17: 18.28 | D17: 9.5 | E17: 311 | F17: 50 | G17: 9.5 | H17: 17 | L17: Nov | M17: 18.28 | N17: 9 | O17: 311 | P17: 9 | Q17: 17
A18: Dec | B18: 150 | C18: 20.93 | D18: 13 | E18: 338 | F18: 50 | G18: 13 | H18: 21 | L18: Dec | M18: 20.93 | N18: 14 | O18: 301 | P18: 14 | Q18: 18
L19: Annual | M19: =AVERAGE(M7:M18) -> 13.41833333 | N19: =AVERAGE(N7:N18) -> 8.333333333 | O19: =MAX(O7:O18) -> 1489 | P19: =AVERAGE(P7:P18) -> 8.333333333 | Q19: =MAX(Q7:Q18) -> 26
K21: =+A6 -> 2021 | L21: mg/Nm3 | M21: 95%ile 10-min avg maximum | N21: Monthly CO 10-min avg mean | O21: 10-min avg maximum | P21: Monthly daily mean | Q21: Monthly daily maximum
K22: A2 | L22: Jan | M22: 29.98 | N22: 23 | O22: 468 | P22: 23 | Q22: 29
L23: Feb | M23: 31.16 | N23: 22 | O23: 460 | P23: 22 | Q23: 26
L24: Mar | M24: 26.77 | N24: 19 | O24: 318 | P24: 19 | Q24: 33
L25: Apr | M25: 28.39 | N25: 20 | O25: 600 | P25: 20 | Q25: 27
L26: May | M26: 21.31 | N26: 14 | O26: 269 | P26: 14 | Q26: 20
L27: Jun | M27: 15.67 | N27: 8 | O27: 58 | P27: 8 | Q27: 15
L28: Jul | M28: 10.3 | N28: 7 | O28: 207 | P28: 7 | Q28: 9
L29: Aug | M29: 10.97 | N29: 8 | O29: 466 | P29: 8 | Q29: 22
L30: Sep | M30: 15.72 | N30: 11 | O30: 231 | P30: 11 | Q30: 14
L31: Oct | M31: 13.8 | N31: 10 | O31: 176 | P31: 10 | Q31: 13
L32: Nov | M32: 15.33 | N32: 10 | O32: 135 | P32: 10 | Q32: 15
L33: Dec | M33: 18.8 | N33: 12 | O33: 338 | P33: 12 | Q33: 21
L34: Annual | M34: =AVERAGE(M22:M33) -> 19.85 | N34: =AVERAGE(N22:N33) -> 13.66666667 | O34: =MAX(O22:O33) -> 600 | P34: =AVERAGE(P22:P33) -> 13.66666667 | Q34: =MAX(Q22:Q33) -> 33
K36: =+A6 -> 2021 | L36: mg/Nm3 | M36: 95%ile 10-min avg maximum | N36: Monthly CO 10-min avg mean | O36: 10-min avg maximum | P36: Monthly daily mean | Q36: Monthly daily maximum
K37: A3 | L37: Jan
L38: Feb
L39: Mar
L40: Apr
L41: May
L42: Jun
L43: Jul
L44: Aug
L45: Sep
L46: Oct
L47: Nov
A48: Comments : | L48: Dec
A49: Environment Agency explanatory note: The 10-minute average ELV is based on the “95th percentile”. In this case this means that 95% of the 10 minute averages in the relevant 24-hour period (i.e. 137) must be below 150 mg/Nm3, and 5% (i.e. 7) are allowed to be any value above 150 mg/Nm3. Whilst we expect operators to minimise CO emissions at all times, it is perfectly acceptable for the value of the maximum 10-minute average to be above 150 mg/Nm3, provided the 95th percentile ELV has been met for that period. | L49: Annual | M49: =AVERAGE(M37:M48) ->  | O49: =MAX(O37:O48) -> 0 | P49: =AVERAGE(P37:P48) ->  | Q49: =MAX(Q37:Q48) -> 0
K51: =+A6 -> 2021 | L51: mg/Nm3 | M51: 95%ile 10-min avg maximum | N51: Monthly CO 10-min avg mean | O51: 10-min avg maximum | P51: Monthly daily mean | Q51: Monthly daily maximum
K52: A4 | L52: Jan
L53: Feb
L54: Mar
L55: Apr
L56: May
L57: Jun
L58: Jul
L59: Aug
L60: Sep
L61: Oct
L62: Nov
L63: Dec
L64: Annual | M64: =AVERAGE(M52:M63) ->  | O64: =MAX(O52:O63) -> 0 | P64: =AVERAGE(P52:P63) ->  | Q64: =MAX(Q52:Q63) -> 0
K66: =+A6 -> 2021 | L66: mg/Nm3 | M66: 95%ile 10-min avg maximum | N66: Monthly CO 10-min avg mean | O66: 10-min avg maximum | P66: Monthly daily mean | Q66: Monthly daily maximum
K67: A5 | L67: Jan
L68: Feb
L69: Mar
L70: Apr
L71: May
L72: Jun
L73: Jul
L74: Aug
L75: Sep
L76: Oct
L77: Nov
L78: Dec
L79: Annual | M79: =AVERAGE(M67:M78) ->  | O79: =MAX(O67:O78) -> 0 | P79: =AVERAGE(P67:P78) ->  | Q79: =MAX(Q67:Q78) -> 0

Sheet NH3
A1: =+'Cover Page'!$B$29 -> Annual Performance Report 2021 | E1: =+'Cover Page'!$B$33 -> Stoke Energy from Waste Facility
A3: Monitoring of Ammnonia emissions | D3: Whole Installation | G3: See Notes in Cell Q3 | J3: =+A3 -> Monitoring of Ammnonia emissions | N3: Per Combustion Line | Q3: Notes:
Q4: User to add logic to complete Whole installation, Table A5:G18. From the data in Per Combustion Line, Table J6:O79, subject to No. of lines installed
A5: mg/Nm3 | B5: 1/2 Hourly Reference Periods | E5: Daily Reference Periods
A6: =+'Cover Page'!C39 -> 2021 | B6: 1/2 hourly NH3 ELV | C6: Monthly 1/2 hourly mean | D6: Highest 1/2 hourly maximum | E6: Daily NH3 ELV | F6: Monthly daily mean | G6: Highest daily maximum | J6: =+A6 -> 2021 | K6: mg/Nm3 | L6: Monthly 1/2 hourly mean | M6: Monthly 1/2 hourly maximum | N6: Monthly daily mean | O6: Monthly daily maximum
A7: Jan | B7: 0 | C7: =AVERAGE(L7,L22) -> 6 | D7: =MAX(M7,M22) -> 82 | E7: 10 | F7: =AVERAGE(N7,N22) -> 6 | G7: =MAX(O7,O22) -> 12 | J7: A1 | K7: Jan | L7: 3 | M7: 46 | N7: 3 | O7: 10
A8: Feb | B8: =+B7 -> 0 | C8: =AVERAGE(L8,L23) -> 5 | D8: =MAX(M8,M23) -> 48 | E8: =+E7 -> 10 | F8: =AVERAGE(N8,N23) -> 5 | G8: =MAX(O8,O23) -> 11 | K8: Feb | L8: 2 | M8: 19 | N8: 2 | O8: 4
A9: Mar | B9: =+B8 -> 0 | C9: 4.5 | D9: 37 | E9: =+E8 -> 10 | F9: 4.5 | G9: 14 | K9: Mar | L9: 1 | M9: 21 | N9: 1 | O9: 4 | Q9: Whole Installation table A5:G18:
A10: Apr | B10: 0 | C10: 6.5 | D10: 48 | E10: 10 | F10: 6.5 | G10: 18 | K10: Apr | L10: 1 | M10: 7 | N10: 1 | O10: 2 | Q10: Mean: for 1/2 hourly and daily periods calculate mean of values across all operational combustion lines for the month
A11: May | B11: 0 | C11: 6 | D11: 47 | E11: 10 | F11: 6 | G11: 10 | K11: May | L11: 5 | M11: 25 | N11: 5 | O11: 10
A12: Jun | B12: 0 | C12: 2 | D12: 26 | E12: 10 | F12: 2 | G12: 7 | K12: Jun | L12: 2 | M12: 26 | N12: 2 | O12: 3
A13: Jul | B13: 0 | C13: 1.5 | D13: 33 | E13: 10 | F13: 1.5 | G13: 4 | K13: Jul | L13: 2 | M13: 17 | N13: 2 | O13: 4 | Q13: Maximum: for 1/2 hourly and daily periods use the highest value across all operational combustion lines for the month
A14: Aug | B14: 0 | C14: 2 | D14: 78 | E14: 10 | F14: 2 | G14: 8 | K14: Aug | L14: 3 | M14: 23 | N14: 3 | O14: 8
A15: Sep | B15: 0 | C15: 5.5 | D15: 31 | E15: 10 | F15: 5.5 | G15: 8 | K15: Sep | L15: 4 | M15: 12 | N15: 4 | O15: 7
A16: Oct | B16: 0 | C16: 6.5 | D16: 32 | E16: 10 | F16: 6.5 | G16: 13 | K16: Oct | L16: 7 | M16: 31 | N16: 7 | O16: 13
A17: Nov | B17: 0 | C17: 7 | D17: 78 | E17: 10 | F17: 7 | G17: 16 | K17: Nov | L17: 10 | M17: 78 | N17: 10 | O17: 16
A18: Dec | B18: 0 | C18: 7 | D18: 39 | E18: 10 | F18: 7 | G18: 16 | K18: Dec | L18: 11 | M18: 39 | N18: 11 | O18: 16
K19: Annual | L19: =AVERAGE(L7:L18) -> 4.25 | M19: =MAX(M7:M18) -> 78 | N19: =AVERAGE(N7:N18) -> 4.25 | O19: =MAX(O7:O18) -> 16
J21: =+A6 -> 2021 | K21: mg/Nm3 | L21: Monthly 1/2 hourly mean | M21: Monthly 1/2 hourly maximum | N21: Monthly daily mean | O21: Monthly daily maximum
J22: A2 | K22: Jan | L22: 9 | M22: 82 | N22: 9 | O22: 12
K23: Feb | L23: 8 | M23: 48 | N23: 8 | O23: 11
K24: Mar | L24: 8 | M24: 37 | N24: 8 | O24: 14
K25: Apr | L25: 12 | M25: 48 | N25: 12 | O25: 18
K26: May | L26: 7 | M26: 47 | N26: 7 | O26: 10
K27: Jun | L27: 2 | M27: 18 | N27: 2 | O27: 7
K28: Jul | L28: 1 | M28: 33 | N28: 1 | O28: 4
K29: Aug | L29: 1 | M29: 78 | N29: 1 | O29: 3
K30: Sep | L30: 7 | M30: 31 | N30: 7 | O30: 8
K31: Oct | L31: 6 | M31: 32 | N31: 6 | O31: 8
K32: Nov | L32: 4 | M32: 20 | N32: 4 | O32: 7
K33: Dec | L33: 3 | M33: 28 | N33: 3 | O33: 10
K34: Annual | L34: =AVERAGE(L22:L33) -> 5.666666667 | M34: =MAX(M22:M33) -> 82 | N34: =AVERAGE(N22:N33) -> 5.666666667 | O34: =MAX(O22:O33) -> 18
J36: =+A6 -> 2021 | K36: mg/Nm3 | L36: Monthly 1/2 hourly mean | M36: Monthly 1/2 hourly maximum | N36: Monthly daily mean | O36: Monthly daily maximum
J37: A3 | K37: Jan
K38: Feb
K39: Mar
K40: Apr
K41: May
K42: Jun
K43: Jul
K44: Aug
K45: Sep
K46: Oct
K47: Nov
A48: Comments : | K48: Dec
A49: An indicated ELV value of zero in the table above means that no ammonia limit is set in the permit. | K49: Annual | L49: =AVERAGE(L37:L48) ->  | M49: =MAX(M37:M48) -> 0 | N49: =AVERAGE(N37:N48) ->  | O49: =MAX(O37:O48) -> 0
J51: =+A6 -> 2021 | K51: mg/Nm3 | L51: Monthly 1/2 hourly mean | M51: Monthly 1/2 hourly maximum | N51: Monthly daily mean | O51: Monthly daily maximum
J52: A4 | K52: Jan
K53: Feb
K54: Mar
K55: Apr
K56: May
K57: Jun
K58: Jul
K59: Aug
K60: Sep
K61: Oct
K62: Nov
K63: Dec
K64: Annual | L64: =AVERAGE(L52:L63) ->  | M64: =MAX(M52:M63) -> 0 | N64: =AVERAGE(N52:N63) ->  | O64: =MAX(O52:O63) -> 0
J66: =+A6 -> 2021 | K66: mg/Nm3 | L66: Monthly 1/2 hourly mean | M66: Monthly 1/2 hourly maximum | N66: Monthly daily mean | O66: Monthly daily maximum
J67: A5 | K67: Jan
K68: Feb
K69: Mar
K70: Apr
K71: May
K72: Jun
K73: Jul
K74: Aug
K75: Sep
K76: Oct
K77: Nov
K78: Dec
K79: Annual | L79: =AVERAGE(L67:L78) ->  | M79: =MAX(M67:M78) -> 0 | N79: =AVERAGE(N67:N78) ->  | O79: =MAX(O67:O78) -> 0
